[Event "*** Titled Tuesday Blitz"]
[Site "Chess.com"]
[Date "2019.08.06"]
[Round "4"]
[White "Everyfishknows"]
[Black "stoleriu"]
[Result "1-0"]
[WhiteElo "2406"]
[BlackElo "2504"]
[TimeControl "180+2"]
[EndTime "13:49:18 PDT"]
[Termination "Everyfishknows won by resignation"]

1. Nf3 {[%clk 0:03:01.9]} 1... Nf6 {[%clk 0:02:58.8]} 2. c4 {[%clk 0:03:02.7]}
2... e6 {[%clk 0:02:59.2]} 3. g3 {[%clk 0:03:03.5]} 3... b6 {[%clk 0:02:58.8]}
4. Bg2 {[%clk 0:03:04.3]} 4... Bb7 {[%clk 0:03:00.7]} 5. O-O {[%clk 0:03:05.2]}
5... c5 {[%clk 0:03:01.5]} 6. b3 {[%clk 0:03:06.2]} 6... Be7 {[%clk 0:02:58.6]}
7. Bb2 {[%clk 0:03:07.1]} 7... O-O {[%clk 0:02:59.8]} 8. e3 {[%clk 0:03:07.6]}
8... Nc6 {[%clk 0:02:58.1]} 9. Nc3 {[%clk 0:03:08.4]} 9... Rc8 {[%clk
0:02:56.1]} 10. Qe2 {[%clk 0:03:06.6]} 10... Qc7 {[%clk 0:02:55.1]} 11. d4
{[%clk 0:03:02]} 11... cxd4 {[%clk 0:02:55.2]} 12. exd4 {[%clk 0:03:01.2]} 12...
d5 {[%clk 0:02:43.6]} 13. cxd5 {[%clk 0:02:53.8]} 13... exd5 {[%clk 0:02:45.5]}
14. Rac1 {[%clk 0:02:54.4]} 14... Rfe8 {[%clk 0:02:44.3]} 15. Qd2 {[%clk
0:02:43.4]} 15... Qb8 {[%clk 0:02:15.3]} 16. Rfe1 {[%clk 0:02:42.4]} 16... Bb4
{[%clk 0:02:09.8]} 17. Qg5 {[%clk 0:01:41.8]} 17... Ne4 {[%clk 0:01:27.5]} 18.
Nxe4 {[%clk 0:01:35.1]} 18... dxe4 {[%clk 0:00:32.3]} 19. d5 {[%clk 0:01:35.7]}
19... f6 {[%clk 0:00:33.4]} 20. Bxf6 {[%clk 0:01:30.1]} 20... Rc7 {[%clk
0:00:34.3]} 21. dxc6 {[%clk 0:01:27.6]} 21... exf3 {[%clk 0:00:32.4]} 22. Rxe8+
{[%clk 0:01:08.9]} 22... Qxe8 {[%clk 0:00:34.2]} 23. Bxf3 {[%clk 0:01:00.5]}
23... Ba3 {[%clk 0:00:22.2]} 24. Rd1 {[%clk 0:00:52.6]} 24... Bxc6 {[%clk
0:00:19.6]} 25. Rd8 {[%clk 0:00:45.7]} 1-0

[Event "*** Titled Tuesday Blitz"]
[Site "Chess.com"]
[Date "2019.08.06"]
[Round "4"]
[White "Adham_Fawzy"]
[Black "NTBT_DHS"]
[Result "1-0"]
[WhiteElo "2729"]
[BlackElo "2662"]
[TimeControl "180+2"]
[EndTime "13:49:20 PDT"]
[Termination "Adham_Fawzy won by resignation"]

1. e4 {[%clk 0:03:01.9]} 1... c5 {[%clk 0:03:00.3]} 2. Nf3 {[%clk 0:03:02.2]}
2... d6 {[%clk 0:03:01.1]} 3. d4 {[%clk 0:03:02]} 3... cxd4 {[%clk 0:03:03]} 4.
Nxd4 {[%clk 0:03:03.7]} 4... Nf6 {[%clk 0:03:03.6]} 5. Nc3 {[%clk 0:03:04.2]}
5... g6 {[%clk 0:03:05]} 6. Be3 {[%clk 0:03:04.2]} 6... Bg7 {[%clk 0:03:06.1]}
7. f3 {[%clk 0:03:05.5]} 7... O-O {[%clk 0:03:07.5]} 8. Qd2 {[%clk 0:03:06.2]}
8... Nc6 {[%clk 0:03:09.1]} 9. O-O-O {[%clk 0:03:07.5]} 9... d5 {[%clk 0:03:10]}
10. Qe1 {[%clk 0:03:09]} 10... e5 {[%clk 0:03:10.4]} 11. Nxc6 {[%clk 0:03:10.3]}
11... bxc6 {[%clk 0:03:10.9]} 12. exd5 {[%clk 0:03:11.6]} 12... Nxd5 {[%clk
0:03:01.8]} 13. Bc4 {[%clk 0:03:08.6]} 13... Be6 {[%clk 0:03:00.9]} 14. Kb1
{[%clk 0:03:09.1]} 14... Rb8 {[%clk 0:02:49.5]} 15. Ne4 {[%clk 0:03:07.6]} 15...
Qc7 {[%clk 0:02:29.3]} 16. Bc5 {[%clk 0:03:03.6]} 16... Rfd8 {[%clk 0:02:27.6]}
17. h4 {[%clk 0:03:04.5]} 17... h6 {[%clk 0:02:20.7]} 18. Bb3 {[%clk 0:02:59.4]}
18... a5 {[%clk 0:02:15]} 19. h5 {[%clk 0:02:46.9]} 19... a4 {[%clk 0:02:02.5]}
20. Bxa4 {[%clk 0:02:39.5]} 20... f5 {[%clk 0:02:03.4]} 21. Nd6 {[%clk
0:02:33.7]} 21... Rxd6 {[%clk 0:01:56.4]} 22. Bxd6 {[%clk 0:02:35.6]} 22... Qxd6
{[%clk 0:01:58.1]} 23. Bb3 {[%clk 0:02:31.7]} 23... Qe7 {[%clk 0:01:33.1]} 24.
hxg6 {[%clk 0:02:32.4]} 24... Qf6 {[%clk 0:01:34.1]} 25. Qh4 {[%clk 0:02:09.4]}
25... Qxg6 {[%clk 0:01:23.3]} 26. Qa4 {[%clk 0:02:10.1]} 26... Bf7 {[%clk
0:01:06.1]} 27. Qa7 {[%clk 0:02:09.5]} 27... Rd8 {[%clk 0:00:58.2]} 28. c4
{[%clk 0:02:07.3]} 28... e4 {[%clk 0:00:51.1]} 29. cxd5 {[%clk 0:01:52.8]} 29...
Qxg2 {[%clk 0:00:51.3]} 30. Bc2 {[%clk 0:01:51.6]} 30... cxd5 {[%clk 0:00:32.2]}
31. Rhg1 {[%clk 0:01:44]} 31... Qh2 {[%clk 0:00:29.8]} 32. Qd4 {[%clk
0:01:40.3]} 32... Bg6 {[%clk 0:00:13.7]} 33. Rxg6 {[%clk 0:01:40.2]} 33... Rd7
{[%clk 0:00:15.1]} 34. Rdg1 {[%clk 0:01:38.3]} 1-0

[Event "*** Titled Tuesday Blitz"]
[Site "Chess.com"]
[Date "2019.08.06"]
[Round "4"]
[White "tgpgoat"]
[Black "Caisachess"]
[Result "0-1"]
[WhiteElo "1965"]
[BlackElo "2301"]
[TimeControl "180+2"]
[EndTime "13:49:21 PDT"]
[Termination "Caisachess won by resignation"]

1. e4 {[%clk 0:03:01.1]} 1... e5 {[%clk 0:03:01]} 2. Nf3 {[%clk 0:03:01.7]} 2...
Nc6 {[%clk 0:03:02.5]} 3. Bc4 {[%clk 0:03:02.2]} 3... Bc5 {[%clk 0:03:02.5]} 4.
d3 {[%clk 0:03:02.4]} 4... Nf6 {[%clk 0:03:02.7]} 5. c3 {[%clk 0:03:02.8]} 5...
d6 {[%clk 0:03:03.8]} 6. O-O {[%clk 0:03:02.5]} 6... h6 {[%clk 0:03:04.1]} 7. h3
{[%clk 0:03:03.9]} 7... O-O {[%clk 0:03:03.3]} 8. Bb3 {[%clk 0:03:04.7]} 8... a5
{[%clk 0:03:04.1]} 9. Re1 {[%clk 0:03:04.6]} 9... Be6 {[%clk 0:03:05.3]} 10. Bc2
{[%clk 0:03:04.8]} 10... Qb8 {[%clk 0:03:06.2]} 11. Nbd2 {[%clk 0:03:05.1]}
11... Qa7 {[%clk 0:03:06.7]} 12. Qe2 {[%clk 0:03:03.8]} 12... Rfe8 {[%clk
0:03:01.9]} 13. Nf1 {[%clk 0:03:03.6]} 13... d5 {[%clk 0:03:02]} 14. Be3 {[%clk
0:02:59.1]} 14... d4 {[%clk 0:02:58.9]} 15. Bd2 {[%clk 0:02:50.6]} 15... a4
{[%clk 0:02:51.1]} 16. Ng3 {[%clk 0:02:35.6]} 16... a3 {[%clk 0:02:48.9]} 17. b4
{[%clk 0:02:36.4]} 17... dxc3 {[%clk 0:02:48.3]} 18. Bxc3 {[%clk 0:02:08.8]}
18... Bxb4 {[%clk 0:02:32.5]} 19. Bxb4 {[%clk 0:02:07.2]} 19... Nxb4 {[%clk
0:02:33.7]} 20. Nxe5 {[%clk 0:01:53.7]} 20... Qd4 {[%clk 0:02:26.6]} 21. Nc4
{[%clk 0:01:38.3]} 21... Red8 {[%clk 0:02:13.2]} 22. Red1 {[%clk 0:01:30.8]}
22... b6 {[%clk 0:01:51.3]} 23. Kh2 {[%clk 0:01:01.3]} 23... b5 {[%clk 0:01:52]}
24. Ne3 {[%clk 0:01:01.6]} 24... c5 {[%clk 0:01:44.5]} 25. Nef5 {[%clk
0:00:58.9]} 25... Qe5 {[%clk 0:01:43.2]} 26. Bb3 {[%clk 0:00:50.9]} 26... Bxf5
{[%clk 0:01:33.2]} 27. exf5 {[%clk 0:00:47.9]} 27... Qxe2 {[%clk 0:01:34.2]} 28.
Nxe2 {[%clk 0:00:48.8]} 28... Nxd3 {[%clk 0:01:35.5]} 29. Rd2 {[%clk 0:00:45.1]}
29... c4 {[%clk 0:01:36.4]} 30. Bc2 {[%clk 0:00:45.7]} 30... Nxf2 {[%clk
0:01:37.2]} 31. Nd4 {[%clk 0:00:46.2]} 31... N2e4 {[%clk 0:01:32.8]} 32. Rdd1
{[%clk 0:00:44.9]} 32... Nc3 {[%clk 0:01:33]} 33. Rd2 {[%clk 0:00:45.1]} 33...
b4 {[%clk 0:01:31.5]} 34. Bd1 {[%clk 0:00:42.2]} 34... Nfe4 {[%clk 0:01:31]} 0-1

[Event "*** Titled Tuesday Blitz"]
[Site "Chess.com"]
[Date "2019.08.06"]
[Round "4"]
[White "chedimir"]
[Black "Slovak_fighter2000"]
[Result "0-1"]
[WhiteElo "2273"]
[BlackElo "2480"]
[TimeControl "180+2"]
[EndTime "13:49:24 PDT"]
[Termination "Slovak_fighter2000 won by resignation"]

1. c4 {[%clk 0:02:59.9]} 1... e5 {[%clk 0:02:36.6]} 2. Nf3 {[%clk 0:02:59.8]}
2... e4 {[%clk 0:02:36]} 3. Nd4 {[%clk 0:03:00]} 3... Nc6 {[%clk 0:02:35.5]} 4.
e3 {[%clk 0:03:00.6]} 4... Nxd4 {[%clk 0:02:35.3]} 5. exd4 {[%clk 0:03:01.1]}
5... Nf6 {[%clk 0:02:36.9]} 6. Nc3 {[%clk 0:03:01.3]} 6... Bb4 {[%clk
0:02:32.3]} 7. a3 {[%clk 0:02:59.4]} 7... Bxc3 {[%clk 0:02:30.9]} 8. dxc3 {[%clk
0:03:00]} 8... h6 {[%clk 0:02:32.5]} 9. Be3 {[%clk 0:02:59.4]} 9... O-O {[%clk
0:02:32.8]} 10. g4 {[%clk 0:02:55.3]} 10... d5 {[%clk 0:02:20.9]} 11. Rg1 {[%clk
0:02:55.3]} 11... Qd6 {[%clk 0:02:13.4]} 12. h4 {[%clk 0:02:42.6]} 12... Qh2
{[%clk 0:02:09.9]} 13. Rg3 {[%clk 0:02:34.7]} 13... Qxh4 {[%clk 0:02:08]} 14. g5
{[%clk 0:02:33]} 14... Ng4 {[%clk 0:01:58.3]} 15. gxh6 {[%clk 0:02:30.6]} 15...
Nxe3 {[%clk 0:01:35.1]} 16. Rxe3 {[%clk 0:02:31.1]} 16... Bg4 {[%clk 0:01:25.8]}
17. hxg7 {[%clk 0:02:16]} 17... Bxd1 {[%clk 0:01:21.4]} 18. gxf8=Q+ {[%clk
0:02:15.1]} 18... Kxf8 {[%clk 0:01:22.4]} 19. Rxd1 {[%clk 0:02:15.6]} 19... f5
{[%clk 0:01:23.6]} 20. cxd5 {[%clk 0:02:15.1]} 20... Re8 {[%clk 0:01:22.7]} 21.
c4 {[%clk 0:02:13.5]} 21... f4 {[%clk 0:01:20.2]} 22. Rh3 {[%clk 0:02:13.6]}
22... Qf6 {[%clk 0:01:14.2]} 23. c5 {[%clk 0:02:11.2]} 23... e3 {[%clk
0:01:12.8]} 24. Rd3 {[%clk 0:02:06]} 24... Re4 {[%clk 0:00:56.3]} 25. Be2 {[%clk
0:01:56.5]} 25... Rxd4 {[%clk 0:00:51.6]} 26. fxe3 {[%clk 0:01:55.6]} 26... Rxd3
{[%clk 0:00:50.1]} 27. Bxd3 {[%clk 0:01:55.9]} 27... Qxb2 {[%clk 0:00:44.1]} 28.
d6 {[%clk 0:01:55]} 28... cxd6 {[%clk 0:00:42.2]} 29. cxd6 {[%clk 0:01:55.4]}
29... Qxa3 {[%clk 0:00:36.4]} 30. d7 {[%clk 0:01:51.5]} 30... Qxd3 {[%clk
0:00:35.1]} 31. d8=Q+ {[%clk 0:01:41.3]} 31... Qxd8 {[%clk 0:00:34.5]} 32. Rh8+
{[%clk 0:01:41.6]} 32... Ke7 {[%clk 0:00:36.4]} 33. Rxd8 {[%clk 0:01:41.5]}
33... Kxd8 {[%clk 0:00:38.3]} 34. exf4 {[%clk 0:01:42.5]} 34... Ke7 {[%clk
0:00:37.8]} 0-1

[Event "*** Titled Tuesday Blitz"]
[Site "Chess.com"]
[Date "2019.08.06"]
[Round "4"]
[White "MFBerna"]
[Black "rst2003"]
[Result "0-1"]
[WhiteElo "2377"]
[BlackElo "2272"]
[TimeControl "180+2"]
[EndTime "13:49:42 PDT"]
[Termination "rst2003 won by checkmate"]

1. e4 {[%clk 0:03:01.9]} 1... c5 {[%clk 0:02:58.6]} 2. Nf3 {[%clk 0:03:02.7]}
2... d6 {[%clk 0:02:59.5]} 3. d4 {[%clk 0:03:04.6]} 3... cxd4 {[%clk 0:03:01]}
4. Nxd4 {[%clk 0:03:06.5]} 4... Nf6 {[%clk 0:03:02.1]} 5. Nc3 {[%clk 0:03:07.9]}
5... a6 {[%clk 0:03:02.9]} 6. Bc4 {[%clk 0:03:08.9]} 6... e6 {[%clk 0:03:03.7]}
7. O-O {[%clk 0:03:10]} 7... b5 {[%clk 0:03:02.9]} 8. Bb3 {[%clk 0:03:11.2]}
8... Be7 {[%clk 0:03:04.1]} 9. Re1 {[%clk 0:03:12]} 9... O-O {[%clk 0:03:04]}
10. a4 {[%clk 0:03:12.7]} 10... b4 {[%clk 0:03:04.4]} 11. Nb1 {[%clk 0:03:14.1]}
11... Bb7 {[%clk 0:03:04.7]} 12. Nd2 {[%clk 0:03:14.6]} 12... Nbd7 {[%clk
0:03:05.6]} 13. f3 {[%clk 0:03:04.2]} 13... Qc7 {[%clk 0:02:57.8]} 14. Nf1
{[%clk 0:02:46.9]} 14... d5 {[%clk 0:02:56.3]} 15. exd5 {[%clk 0:02:34.2]} 15...
Nxd5 {[%clk 0:02:56.4]} 16. Ne3 {[%clk 0:01:56.1]} 16... N7f6 {[%clk 0:02:17.8]}
17. Nxd5 {[%clk 0:01:54.8]} 17... Nxd5 {[%clk 0:02:17.8]} 18. Kh1 {[%clk
0:01:51]} 18... Bd6 {[%clk 0:02:15]} 19. h3 {[%clk 0:01:07.4]} 19... Rad8 {[%clk
0:01:37.6]} 20. Qe2 {[%clk 0:01:01]} 20... Bc5 {[%clk 0:01:31.6]} 21. Rd1 {[%clk
0:00:29.8]} 21... Qg3 {[%clk 0:01:08.2]} 22. Qc4 {[%clk 0:00:17]} 22... Bd6
{[%clk 0:01:07.3]} 23. f4 {[%clk 0:00:10.2]} 23... Nxf4 {[%clk 0:01:04.7]} 24.
Rd2 {[%clk 0:00:03.3]} 24... Bxg2+ {[%clk 0:00:47.8]} 25. Kg1 {[%clk 0:00:04.5]}
25... Nxh3# {[%clk 0:00:48.2]} 0-1

[Event "*** Titled Tuesday Blitz"]
[Site "Chess.com"]
[Date "2019.08.06"]
[Round "4"]
[White "politeplayer"]
[Black "Jahonas"]
[Result "0-1"]
[WhiteElo "2240"]
[BlackElo "2390"]
[TimeControl "180+2"]
[EndTime "13:49:42 PDT"]
[Termination "Jahonas won by resignation"]

1. e4 {[%clk 0:03:01.9]} 1... c6 {[%clk 0:02:54.7]} 2. d4 {[%clk 0:03:02.1]}
2... d5 {[%clk 0:02:50.2]} 3. exd5 {[%clk 0:03:03.4]} 3... cxd5 {[%clk
0:02:48.7]} 4. c4 {[%clk 0:03:04.9]} 4... Nf6 {[%clk 0:02:47.9]} 5. Nc3 {[%clk
0:03:06.5]} 5... Nc6 {[%clk 0:02:48.7]} 6. Nf3 {[%clk 0:03:07.6]} 6... Bg4
{[%clk 0:02:49.7]} 7. cxd5 {[%clk 0:03:08.6]} 7... Nxd5 {[%clk 0:02:44.5]} 8.
Bb5 {[%clk 0:03:10]} 8... Bxf3 {[%clk 0:02:43.9]} 9. Qxf3 {[%clk 0:03:08.3]}
9... e6 {[%clk 0:02:44.4]} 10. Bxc6+ {[%clk 0:03:08.2]} 10... bxc6 {[%clk
0:02:45.1]} 11. O-O {[%clk 0:03:09.2]} 11... Be7 {[%clk 0:02:44]} 12. Ne4 {[%clk
0:03:09.4]} 12... O-O {[%clk 0:02:44]} 13. Bd2 {[%clk 0:03:09.7]} 13... Rb8
{[%clk 0:02:43.4]} 14. b3 {[%clk 0:03:09.2]} 14... Qb6 {[%clk 0:02:36.8]} 15.
Qd3 {[%clk 0:02:32.7]} 15... Rbd8 {[%clk 0:02:26.5]} 16. Rac1 {[%clk 0:02:28.6]}
16... Rd7 {[%clk 0:02:21.2]} 17. Nc5 {[%clk 0:02:24.8]} 17... Bxc5 {[%clk
0:02:17.2]} 18. dxc5 {[%clk 0:02:24.8]} 18... Qc7 {[%clk 0:02:03.2]} 19. Qg3
{[%clk 0:02:24.9]} 19... Qxg3 {[%clk 0:02:02.3]} 20. hxg3 {[%clk 0:02:24.5]}
20... Rb8 {[%clk 0:01:57.8]} 21. Rfd1 {[%clk 0:02:21.3]} 21... f6 {[%clk
0:01:56]} 22. Bf4 {[%clk 0:02:09.4]} 22... e5 {[%clk 0:01:54.7]} 23. Bd2 {[%clk
0:02:06.6]} 23... Rdb7 {[%clk 0:01:49.4]} 24. f3 {[%clk 0:02:05.4]} 24... Rb5
{[%clk 0:01:46.6]} 25. Kf2 {[%clk 0:02:04]} 25... a5 {[%clk 0:01:41.4]} 26. a4
{[%clk 0:01:59.2]} 26... Rxb3 {[%clk 0:01:40.6]} 27. Bxa5 {[%clk 0:01:59.7]}
27... Rb2+ {[%clk 0:01:37]} 28. Kg1 {[%clk 0:01:43]} 28... Ra8 {[%clk
0:01:27.9]} 29. Be1 {[%clk 0:01:23.3]} 29... Rxa4 {[%clk 0:01:17]} 30. Ra1
{[%clk 0:01:16.8]} 30... Rxa1 {[%clk 0:01:09.4]} 31. Rxa1 {[%clk 0:01:16.8]}
31... Rc2 {[%clk 0:01:06.1]} 32. Bf2 {[%clk 0:01:15.3]} 32... Nb4 {[%clk
0:00:57.1]} 33. Ra7 {[%clk 0:01:10.5]} 33... Nd3 {[%clk 0:00:57]} 34. Be3 {[%clk
0:01:09.7]} 34... Re2 {[%clk 0:00:44.2]} 35. Rc7 {[%clk 0:00:58]} 35... Rxe3
{[%clk 0:00:44]} 36. Rxc6 {[%clk 0:00:59.1]} 36... Re1+ {[%clk 0:00:44]} 37. Kh2
{[%clk 0:00:59.3]} 37... Rc1 {[%clk 0:00:45.2]} 0-1

[Event "*** Titled Tuesday Blitz"]
[Site "Chess.com"]
[Date "2019.08.06"]
[Round "4"]
[White "champ2005"]
[Black "fm24601"]
[Result "1-0"]
[WhiteElo "2875"]
[BlackElo "2598"]
[TimeControl "180+2"]
[EndTime "13:49:43 PDT"]
[Termination "champ2005 won by resignation"]

1. e4 {[%clk 0:03:01.2]} 1... e5 {[%clk 0:02:55.2]} 2. Nf3 {[%clk 0:03:01.5]}
2... Nc6 {[%clk 0:02:54.3]} 3. Bb5 {[%clk 0:03:02.9]} 3... a6 {[%clk 0:02:53.9]}
4. Ba4 {[%clk 0:03:02.9]} 4... Nf6 {[%clk 0:02:49.4]} 5. O-O {[%clk 0:03:04.1]}
5... Be7 {[%clk 0:02:49.3]} 6. Re1 {[%clk 0:03:05]} 6... b5 {[%clk 0:02:49.8]}
7. Bb3 {[%clk 0:03:06.4]} 7... d6 {[%clk 0:02:49.5]} 8. c3 {[%clk 0:03:07.1]}
8... O-O {[%clk 0:02:47.8]} 9. h3 {[%clk 0:03:08.3]} 9... Na5 {[%clk 0:02:46.3]}
10. Bc2 {[%clk 0:03:09.3]} 10... c5 {[%clk 0:02:47.6]} 11. d4 {[%clk 0:03:10.3]}
11... Qc7 {[%clk 0:02:49.1]} 12. d5 {[%clk 0:03:11.4]} 12... Nb7 {[%clk
0:02:50]} 13. Nbd2 {[%clk 0:03:08.3]} 13... Nd8 {[%clk 0:02:47.4]} 14. Nf1
{[%clk 0:03:08.6]} 14... Ne8 {[%clk 0:02:47.4]} 15. g4 {[%clk 0:03:08.6]} 15...
g6 {[%clk 0:02:47.8]} 16. Ng3 {[%clk 0:03:08.9]} 16... f6 {[%clk 0:02:47.9]} 17.
Kh2 {[%clk 0:03:07.9]} 17... Nf7 {[%clk 0:02:47.8]} 18. b4 {[%clk 0:03:04.6]}
18... Ng7 {[%clk 0:02:47.2]} 19. Be3 {[%clk 0:03:04.8]} 19... Bd7 {[%clk
0:02:45.4]} 20. Qd2 {[%clk 0:03:03.1]} 20... Qc8 {[%clk 0:02:40]} 21. a4 {[%clk
0:02:59.9]} 21... Bd8 {[%clk 0:02:32.1]} 22. axb5 {[%clk 0:02:57.8]} 22... axb5
{[%clk 0:02:32.5]} 23. Rxa8 {[%clk 0:02:57.9]} 23... Qxa8 {[%clk 0:02:34.4]} 24.
bxc5 {[%clk 0:02:59.1]} 24... dxc5 {[%clk 0:02:31.2]} 25. Bxc5 {[%clk 0:03:01]}
25... Re8 {[%clk 0:02:32.7]} 26. Bd3 {[%clk 0:02:58.9]} 26... Qc8 {[%clk
0:02:29.9]} 27. Bb4 {[%clk 0:02:51.4]} 27... Bb6 {[%clk 0:02:27]} 28. Qe2 {[%clk
0:02:48.7]} 28... f5 {[%clk 0:02:11.2]} 29. gxf5 {[%clk 0:02:48.7]} 29... gxf5
{[%clk 0:02:13]} 30. Rg1 {[%clk 0:02:50]} 30... Kh8 {[%clk 0:02:10.6]} 31. exf5
{[%clk 0:02:39.1]} 31... e4 {[%clk 0:01:56.3]} 32. Bxe4 {[%clk 0:02:31.5]} 32...
Nxf5 {[%clk 0:01:56.4]} 33. Nxf5 {[%clk 0:02:31.1]} 33... Bxf5 {[%clk
0:01:56.9]} 34. c4 {[%clk 0:02:12.6]} 34... Bc7+ {[%clk 0:01:19.1]} 35. d6
{[%clk 0:02:03.4]} 35... Ne5 {[%clk 0:00:22.4]} 36. Nxe5 {[%clk 0:02:00.3]}
36... Rxe5 {[%clk 0:00:16.3]} 37. Qb2 {[%clk 0:02:00.4]} 37... Qe8 {[%clk
0:00:09.5]} 38. dxc7 {[%clk 0:01:59.7]} 1-0

[Event "*** Titled Tuesday Blitz"]
[Site "Chess.com"]
[Date "2019.08.06"]
[Round "4"]
[White "Bathory44"]
[Black "BilodeauA"]
[Result "1/2-1/2"]
[WhiteElo "2588"]
[BlackElo "2901"]
[TimeControl "180+2"]
[EndTime "13:49:51 PDT"]
[Termination "Game drawn by repetition"]

1. e4 {[%clk 0:03:01.9]} 1... c5 {[%clk 0:03:00.4]} 2. c3 {[%clk 0:03:02.5]}
2... Qa5 {[%clk 0:03:00.9]} 3. Nf3 {[%clk 0:03:02.5]} 3... Nc6 {[%clk 0:03:02]}
4. Na3 {[%clk 0:03:02.7]} 4... e6 {[%clk 0:03:03.1]} 5. d4 {[%clk 0:02:59.2]}
5... cxd4 {[%clk 0:03:03.8]} 6. Nc4 {[%clk 0:03:00.6]} 6... Qc7 {[%clk
0:03:04.9]} 7. cxd4 {[%clk 0:03:01.3]} 7... d5 {[%clk 0:03:06.4]} 8. exd5 {[%clk
0:03:02]} 8... exd5 {[%clk 0:03:08.3]} 9. Nce5 {[%clk 0:03:03.6]} 9... Bd6
{[%clk 0:03:08.4]} 10. Bd3 {[%clk 0:02:52.2]} 10... Nge7 {[%clk 0:02:58]} 11.
O-O {[%clk 0:02:50.4]} 11... Nxd4 {[%clk 0:02:25.1]} 12. Nxf7 {[%clk 0:02:25.6]}
12... Nxf3+ {[%clk 0:02:25.7]} 13. Qxf3 {[%clk 0:02:26.1]} 13... Bxh2+ {[%clk
0:02:27.3]} 14. Kh1 {[%clk 0:02:27.6]} 14... Rf8 {[%clk 0:02:26.6]} 15. Bb5+
{[%clk 0:02:28.5]} 15... Bd7 {[%clk 0:02:26.1]} 16. Bxd7+ {[%clk 0:02:28.9]}
16... Qxd7 {[%clk 0:02:24.2]} 17. Kxh2 {[%clk 0:02:20.5]} 17... Rxf7 {[%clk
0:02:24.6]} 18. Qa3 {[%clk 0:02:16]} 18... Qg4 {[%clk 0:02:06.9]} 19. Kg1 {[%clk
0:02:04.8]} 19... Nc6 {[%clk 0:02:07.3]} 20. Re1+ {[%clk 0:02:03.8]} 20... Kd7
{[%clk 0:02:07.6]} 21. Qb3 {[%clk 0:02:03.9]} 21... Qf5 {[%clk 0:01:39.8]} 22.
Be3 {[%clk 0:01:47]} 22... Kc7 {[%clk 0:01:35]} 23. Red1 {[%clk 0:01:41.9]}
23... Rd8 {[%clk 0:01:32.4]} 24. Rac1 {[%clk 0:01:42.8]} 24... d4 {[%clk
0:00:35.5]} 25. Rxd4 {[%clk 0:01:40.9]} 25... Rxd4 {[%clk 0:00:33.9]} 26. Bxd4
{[%clk 0:01:42.6]} 26... a6 {[%clk 0:00:12.4]} 27. Be5+ {[%clk 0:01:37.2]} 27...
Kc8 {[%clk 0:00:11.8]} 28. Rxc6+ {[%clk 0:01:36.9]} 28... bxc6 {[%clk
0:00:13.3]} 29. Qb8+ {[%clk 0:01:37.8]} 29... Kd7 {[%clk 0:00:14.9]} 30. Qc7+
{[%clk 0:01:23.5]} 30... Ke8 {[%clk 0:00:15.6]} 31. Qb8+ {[%clk 0:01:18.3]}
31... Kd7 {[%clk 0:00:16.1]} 32. Qc7+ {[%clk 0:01:07]} 32... Ke8 {[%clk
0:00:17.2]} 33. Qb8+ {[%clk 0:00:56.9]} 33... Kd7 {[%clk 0:00:18]} 1/2-1/2

[Event "*** Titled Tuesday Blitz"]
[Site "Chess.com"]
[Date "2019.08.06"]
[Round "4"]
[White "KazakhFighter04"]
[Black "joppie2"]
[Result "1/2-1/2"]
[WhiteElo "2739"]
[BlackElo "2889"]
[TimeControl "180+2"]
[EndTime "13:49:55 PDT"]
[Termination "Game drawn by agreement"]

1. e4 {[%clk 0:03:01.9]} 1... c5 {[%clk 0:03:00.4]} 2. Nf3 {[%clk 0:03:03.4]}
2... d6 {[%clk 0:02:48.7]} 3. d4 {[%clk 0:03:02.9]} 3... cxd4 {[%clk 0:02:50.6]}
4. Nxd4 {[%clk 0:03:04.4]} 4... Nf6 {[%clk 0:02:52]} 5. Nc3 {[%clk 0:03:05.6]}
5... a6 {[%clk 0:02:53.5]} 6. Be3 {[%clk 0:03:06.8]} 6... e5 {[%clk 0:02:53.8]}
7. Nf3 {[%clk 0:03:07.5]} 7... Be7 {[%clk 0:02:54.5]} 8. Bc4 {[%clk 0:03:09]}
8... O-O {[%clk 0:02:55.4]} 9. O-O {[%clk 0:03:10.6]} 9... Nc6 {[%clk
0:02:50.3]} 10. Re1 {[%clk 0:03:05.9]} 10... Be6 {[%clk 0:02:43]} 11. Bb3 {[%clk
0:03:05.9]} 11... b5 {[%clk 0:02:36]} 12. Bg5 {[%clk 0:03:06.1]} 12... h6 {[%clk
0:02:29.6]} 13. Bxf6 {[%clk 0:03:05.7]} 13... Bxf6 {[%clk 0:02:31.5]} 14. Nd5
{[%clk 0:03:04.6]} 14... Rc8 {[%clk 0:02:05.9]} 15. c3 {[%clk 0:02:52.6]} 15...
Be7 {[%clk 0:02:04.8]} 16. Nd2 {[%clk 0:02:49.3]} 16... Na5 {[%clk 0:02:04.9]}
17. Nf1 {[%clk 0:02:49]} 17... Bg5 {[%clk 0:02:04.1]} 18. g3 {[%clk 0:02:44.8]}
18... Kh8 {[%clk 0:01:43.7]} 19. h4 {[%clk 0:02:45.1]} 19... Be7 {[%clk
0:01:45]} 20. Nfe3 {[%clk 0:02:46.2]} 20... Nb7 {[%clk 0:01:46.1]} 21. a4 {[%clk
0:02:41.9]} 21... Nc5 {[%clk 0:01:46.5]} 22. axb5 {[%clk 0:02:42.8]} 22... axb5
{[%clk 0:01:47.2]} 23. Ra7 {[%clk 0:02:40.2]} 23... Re8 {[%clk 0:01:48.6]} 24.
Bc2 {[%clk 0:02:38.1]} 24... Bf8 {[%clk 0:01:44.7]} 25. Qf3 {[%clk 0:02:32.3]}
25... Nd7 {[%clk 0:01:38.7]} 26. Bd3 {[%clk 0:02:32]} 26... Rb8 {[%clk
0:01:38.6]} 27. b4 {[%clk 0:02:30.8]} 27... Nf6 {[%clk 0:01:23.5]} 28. Nxf6
{[%clk 0:02:26.7]} 28... Qxf6 {[%clk 0:01:25.4]} 29. Qxf6 {[%clk 0:02:24.4]}
29... gxf6 {[%clk 0:01:27.3]} 30. Nd5 {[%clk 0:02:20.5]} 30... Bxd5 {[%clk
0:01:21.2]} 31. exd5 {[%clk 0:02:22.2]} 31... Rec8 {[%clk 0:01:21.1]} 32. Rxf7
{[%clk 0:02:15.7]} 32... Rxc3 {[%clk 0:01:20.8]} 33. Rh7+ {[%clk 0:02:01.6]}
33... Kg8 {[%clk 0:01:21.8]} 34. Bf5 {[%clk 0:02:02.8]} 34... Rf3 {[%clk
0:01:06.6]} 35. Be4 {[%clk 0:01:55]} 35... f5 {[%clk 0:01:05.9]} 36. Bxf3 {[%clk
0:01:41.9]} 36... Kxh7 {[%clk 0:01:06.8]} 37. Be2 {[%clk 0:01:39.4]} 37... e4
{[%clk 0:01:01.7]} 38. Ra1 {[%clk 0:01:32.2]} 38... Bg7 {[%clk 0:00:50.7]} 39.
Ra5 {[%clk 0:01:28.6]} 39... Bc3 {[%clk 0:00:44.4]} 40. Rxb5 {[%clk 0:01:21.1]}
40... Rxb5 {[%clk 0:00:45]} 41. Bxb5 {[%clk 0:01:23]} 41... Bxb4 {[%clk
0:00:46.9]} 42. Kg2 {[%clk 0:01:16.5]} 1/2-1/2